[Event "IV Elllobregat Open Chess Tmnt"]
[Site "Sant Boi de Llobregat, Spain"]
[Date "2023.12.02"]
[Round "3.18"]
[White "Puranik, Abhimanyu"]
[Black "Bronstein, Or"]
[Result "1/2-1/2"]
[TimeControl "90min/40moves + 15min/end + 30sec from move 1"]
[WhiteFideId "5061245"]
[BlackFideId "2815770"]
[WhiteElo "2627"]
[BlackElo "2428"]

1. d4 {[%clk 01:30:49]} {[%emt 00:00:10]} Nf6 {[%clk 01:30:45]} {[%emt
00:00:16]} 2. c4 {[%clk 01:31:11]} {[%emt 00:00:08]} e6 {[%clk 01:30:57]}
{[%emt 00:00:17]} 3. Nf3 {[%clk 01:31:32]} {[%emt 00:00:09]} d5 {[%clk
01:30:14]} {[%emt 00:01:13]} 4. Qc2 {[%clk 01:31:53]} {[%emt 00:00:08]} c5
{[%clk 01:06:19]} {[%emt 00:24:25]} 5. dxc5 {[%clk 01:32:19]} {[%emt 00:00:05]}
Nc6 {[%clk 00:56:28]} {[%emt 00:10:22]} 6. cxd5 {[%clk 01:32:39]} {[%emt
00:00:09]} exd5 {[%clk 00:50:25]} {[%emt 00:06:33]} 7. e3 {[%clk 01:22:31]}
{[%emt 00:10:37]} Qa5+ {[%clk 00:48:02]} {[%emt 00:02:54]} 8. Bd2 {[%clk
01:14:04]} {[%emt 00:08:57]} Qxc5 {[%clk 00:48:18]} {[%emt 00:00:14]} 9. Nc3
{[%clk 00:59:53]} {[%emt 00:14:41]} Be7 {[%clk 00:43:13]} {[%emt 00:05:36]} 10.
Rc1 {[%clk 00:44:07]} {[%emt 00:16:16]} O-O {[%clk 00:42:09]} {[%emt 00:01:33]}
11. Qa4 {[%clk 00:38:45]} {[%emt 00:05:51]} Qb6 {[%clk 00:38:29]} {[%emt
00:04:11]} 12. Bd3 {[%clk 00:33:40]} {[%emt 00:05:34]} Qxb2 {[%clk 00:31:37]}
{[%emt 00:07:23]} 13. O-O {[%clk 00:32:31]} {[%emt 00:01:39]} Qa3 {[%clk
00:26:34]} {[%emt 00:05:33]} 14. Qxa3 {[%clk 00:27:30]} {[%emt 00:05:31]} Bxa3
{[%clk 00:27:02]} {[%emt 00:00:01]} 15. Rb1 {[%clk 00:27:55]} {[%emt 00:00:05]}
Rd8 {[%clk 00:21:15]} {[%emt 00:06:18]} 16. Nb5 {[%clk 00:26:31]} {[%emt
00:01:54]} Be7 {[%clk 00:17:56]} {[%emt 00:03:49]} 17. Nbd4 {[%clk 00:25:04]}
{[%emt 00:01:56]} Ne4 {[%clk 00:13:04]} {[%emt 00:05:22]} 18. Nxc6 {[%clk
00:23:15]} {[%emt 00:02:19]} bxc6 {[%clk 00:13:33]} {[%emt 00:00:02]} 19. Ba5
{[%clk 00:23:35]} {[%emt 00:00:09]} Re8 {[%clk 00:13:05]} {[%emt 00:00:59]} 20.
Ne5 {[%clk 00:15:09]} {[%emt 00:08:55]} Nc5 {[%clk 00:12:45]} {[%emt 00:00:51]}
21. Be2 {[%clk 00:13:13]} {[%emt 00:02:25]} Bf5 {[%clk 00:12:23]} {[%emt
00:00:53]} 22. Rbc1 {[%clk 00:12:18]} {[%emt 00:01:24]} Rac8 {[%clk 00:07:48]}
{[%emt 00:05:05]} 23. Bb4 {[%clk 00:11:48]} {[%emt 00:01:00]} f6 {[%clk
00:06:09]} {[%emt 00:02:09]} 24. Bxc5 {[%clk 00:09:19]} {[%emt 00:02:58]} fxe5
{[%clk 00:05:53]} {[%emt 00:00:47]} 25. Ba6 {[%clk 00:06:38]} {[%emt 00:03:11]}
Rc7 {[%clk 00:06:22]} {[%emt 00:00:02]} 26. Bxe7 {[%clk 00:07:01]} {[%emt
00:00:07]} Rexe7 {[%clk 00:06:46]} {[%emt 00:00:06]} 27. Rc5 {[%clk 00:07:28]}
{[%emt 00:00:03]} Re8 {[%clk 00:02:01]} {[%emt 00:05:15]} 28. Rfc1 {[%clk
00:06:36]} {[%emt 00:01:21]} Rb8 {[%clk 00:02:30]} {[%emt 00:00:02]} 29. Bb5
{[%clk 00:06:32]} {[%emt 00:00:34]} Kf8 {[%clk 00:01:18]} {[%emt 00:01:42]} 30.
f3 {[%clk 00:03:51]} {[%emt 00:03:11]} Bd7 {[%clk 00:00:56]} {[%emt 00:00:53]}
31. e4 {[%clk 00:03:38]} {[%emt 00:00:43]} Rcb7 {[%clk 00:00:50]} {[%emt
00:00:36]} 1/2-1/2

[Event "IV Elllobregat Open Chess Tmnt"]
[Site "Sant Boi de Llobregat, Spain"]
[Date "2023.12.02"]
[Round "3.19"]
[White "Stribuk, Artiom"]
[Black "Pultinevicius, Paulius"]
[Result "1/2-1/2"]
[TimeControl "90min/40moves + 15min/end + 30sec from move 1"]
[WhiteFideId "13515659"]
[BlackFideId "12809390"]
[WhiteElo "2420"]
[BlackElo "2589"]

1. c4 {[%clk 01:30:57]} {[%emt 00:00:02]} e6 {[%clk 01:29:52]} {[%emt
00:01:08]} 2. g3 {[%clk 01:31:09]} {[%emt 00:00:18]} Nf6 {[%clk 01:29:37]}
{[%emt 00:00:45]} 3. Bg2 {[%clk 01:31:32]} {[%emt 00:00:07]} d5 {[%clk
01:29:29]} {[%emt 00:00:38]} 4. Nf3 {[%clk 01:31:55]} {[%emt 00:00:07]} dxc4
{[%clk 01:29:55]} {[%emt 00:00:05]} 5. Qa4+ {[%clk 01:32:12]} {[%emt 00:00:12]}
Nbd7 {[%clk 01:30:09]} {[%emt 00:00:15]} 6. Qxc4 {[%clk 01:32:34]} {[%emt
00:00:08]} a6 {[%clk 01:30:37]} {[%emt 00:00:04]} 7. Qc2 {[%clk 01:32:55]}
{[%emt 00:00:08]} c5 {[%clk 01:30:48]} {[%emt 00:00:19]} 8. Nc3 {[%clk
01:33:19]} {[%emt 00:00:05]} Qc7 {[%clk 01:30:50]} {[%emt 00:00:29]} 9. d4
{[%clk 01:33:37]} {[%emt 00:00:12]} b5 {[%clk 01:30:31]} {[%emt 00:00:47]} 10.
Bf4 {[%clk 01:33:43]} {[%emt 00:00:25]} Qa7 {[%clk 01:30:34]} {[%emt 00:00:28]}
11. d5 {[%clk 01:33:51]} {[%emt 00:00:22]} Nxd5 {[%clk 01:30:59]} {[%emt
00:00:05]} 12. Nxd5 {[%clk 01:34:15]} {[%emt 00:00:05]} exd5 {[%clk 01:31:25]}
{[%emt 00:00:04]} 13. O-O {[%clk 01:34:35]} {[%emt 00:00:10]} Be7 {[%clk
01:31:41]} {[%emt 00:00:15]} 14. a4 {[%clk 01:34:41]} {[%emt 00:00:24]} b4
{[%clk 01:32:06]} {[%emt 00:00:05]} 15. Rfd1 {[%clk 01:35:05]} {[%emt
00:00:06]} Nf6 {[%clk 01:29:36]} {[%emt 00:03:00]} 16. e4 {[%clk 01:34:53]}
{[%emt 00:00:42]} dxe4 {[%clk 01:25:40]} {[%emt 00:04:26]} 17. Ne5 {[%clk
01:35:17]} {[%emt 00:00:05]} Qb7 {[%clk 01:03:52]} {[%emt 00:22:18]} 18. g4
{[%clk 01:28:29]} {[%emt 00:07:18]} h6 {[%clk 00:54:17]} {[%emt 00:10:05]} 19.
h4 {[%clk 01:28:43]} {[%emt 00:00:15]} g5 {[%clk 00:31:33]} {[%emt 00:23:14]}
20. hxg5 {[%clk 01:23:06]} {[%emt 00:06:07]} hxg5 {[%clk 00:31:32]} {[%emt
00:00:32]} 21. Bxg5 {[%clk 01:22:54]} {[%emt 00:00:41]} Rg8 {[%clk 00:29:19]}
{[%emt 00:02:43]} 22. Bxf6 {[%clk 00:51:47]} {[%emt 00:31:37]} Bxf6 {[%clk
00:29:43]} {[%emt 00:00:06]} 23. Qxc5 {[%clk 00:27:44]} {[%emt 00:24:33]} Be6
{[%clk 00:23:41]} {[%emt 00:06:32]} 24. Nc4 {[%clk 00:23:26]} {[%emt 00:04:48]}
Bxc4 {[%clk 00:24:05]} {[%emt 00:00:06]} 25. Qxc4 {[%clk 00:23:54]} {[%emt
00:00:02]} Rxg4 {[%clk 00:24:06]} {[%emt 00:00:29]} 26. Rd6 {[%clk 00:22:42]}
{[%emt 00:01:42]} Rc8 {[%clk 00:17:04]} {[%emt 00:07:32]} 27. Qe2 {[%clk
00:22:21]} {[%emt 00:00:50]} Rf4 {[%clk 00:13:33]} {[%emt 00:04:02]} 28. Qe3
{[%clk 00:12:53]} {[%emt 00:09:57]} Be5 {[%clk 00:13:13]} {[%emt 00:00:50]} 29.
Rd4 {[%clk 00:11:17]} {[%emt 00:02:06]} Bxd4 {[%clk 00:11:52]} {[%emt
00:01:52]} 30. Qxf4 {[%clk 00:11:45]} {[%emt 00:00:01]} Rc2 {[%clk 00:11:33]}
{[%emt 00:00:49]} 31. Rf1 {[%clk 00:09:36]} {[%emt 00:02:39]} Rxb2 {[%clk
00:11:35]} {[%emt 00:00:29]} 32. Bxe4 {[%clk 00:08:42]} {[%emt 00:01:23]} Qb6
{[%clk 00:10:05]} {[%emt 00:02:01]} 33. a5 {[%clk 00:01:50]} {[%emt 00:07:21]}
Qc5 {[%clk 00:06:08]} {[%emt 00:04:27]} 34. Bc6+ {[%clk 00:00:49]} {[%emt
00:01:30]} Kf8 {[%clk 00:04:28]} {[%emt 00:02:11]} 35. Qb8+ {[%clk 00:01:07]}
{[%emt 00:00:12]} Kg7 {[%clk 00:04:50]} {[%emt 00:00:08]} 36. Qg3+ {[%clk
00:01:13]} {[%emt 00:00:24]} Kh6 {[%clk 00:04:12]} {[%emt 00:01:09]} 37. Qh4+
{[%clk 00:01:18]} {[%emt 00:00:24]} Kg6 {[%clk 00:04:13]} {[%emt 00:00:28]} 38.
Be4+ {[%clk 00:01:33]} {[%emt 00:00:15]} f5 {[%clk 00:03:13]} {[%emt 00:01:31]}
39. Kh1 {[%clk 00:00:47]} {[%emt 00:01:15]} Bxf2 {[%clk 00:02:25]} {[%emt
00:01:18]} 40. Qg4+ {[%clk 00:15:41]} {[%emt 00:00:37]} Kf6 {[%clk 00:17:44]}
{[%emt 00:00:10]} 41. Qh5 {[%clk 00:07:32]} {[%emt 00:08:38]} Qe5 {[%clk
00:09:07]} {[%emt 00:09:09]} 1/2-1/2

[Event "IV Elllobregat Open Chess Tmnt"]
[Site "Sant Boi de Llobregat, Spain"]
[Date "2023.12.02"]
[Round "3.20"]
[White "Laurusas, Tomas"]
[Black "Fernandez Borrego, Pablo"]
[Result "1/2-1/2"]
[TimeControl "90min/40moves + 15min/end + 30sec from move 1"]
[WhiteFideId "12803731"]
[BlackFideId "2258285"]
[WhiteElo "2566"]
[BlackElo "2409"]

1. d4 {[%clk 01:30:57]} {[%emt 00:00:01]} e6 {[%clk 01:24:38]} {[%emt
00:06:23]} 2. c4 {[%clk 01:30:40]} {[%emt 00:00:47]} d5 {[%clk 01:25:04]}
{[%emt 00:00:04]} 3. Nc3 {[%clk 01:30:41]} {[%emt 00:00:29]} Nf6 {[%clk
01:23:35]} {[%emt 00:01:59]} 4. cxd5 {[%clk 01:30:54]} {[%emt 00:00:18]} exd5
{[%clk 01:24:00]} {[%emt 00:00:05]} 5. Bg5 {[%clk 01:31:13]} {[%emt 00:00:10]}
Be7 {[%clk 01:23:40]} {[%emt 00:00:50]} 6. e3 {[%clk 01:31:29]} {[%emt
00:00:13]} c6 {[%clk 01:22:36]} {[%emt 00:01:35]} 7. Bd3 {[%clk 01:31:50]}
{[%emt 00:00:09]} Be6 {[%clk 01:21:50]} {[%emt 00:01:16]} 8. Nge2 {[%clk
01:21:47]} {[%emt 00:10:33]} Nh5 {[%clk 01:17:32]} {[%emt 00:04:49]} 9. Bxe7
{[%clk 01:18:46]} {[%emt 00:03:31]} Qxe7 {[%clk 01:18:00]} {[%emt 00:00:03]} 10.
O-O {[%clk 01:17:42]} {[%emt 00:01:32]} Nd7 {[%clk 01:13:41]} {[%emt 00:04:50]}
11. Qd2 {[%clk 01:09:53]} {[%emt 00:08:16]} O-O {[%clk 01:08:38]} {[%emt
00:05:35]} 12. Rae1 {[%clk 01:07:36]} {[%emt 00:02:46]} f5 {[%clk 00:58:32]}
{[%emt 00:10:38]} 13. Kh1 {[%clk 00:57:52]} {[%emt 00:10:13]} Rae8 {[%clk
00:47:59]} {[%emt 00:11:03]} 14. Bb1 {[%clk 00:50:30]} {[%emt 00:07:50]} Nb6
{[%clk 00:46:29]} {[%emt 00:02:02]} 15. b3 {[%clk 00:50:53]} {[%emt 00:00:06]}
Nc8 {[%clk 00:46:44]} {[%emt 00:00:15]} 16. f3 {[%clk 00:50:00]} {[%emt
00:01:23]} Nd6 {[%clk 00:43:04]} {[%emt 00:04:11]} 17. Nf4 {[%clk 00:41:33]}
{[%emt 00:08:56]} Nxf4 {[%clk 00:37:22]} {[%emt 00:06:12]} 18. exf4 {[%clk
00:41:57]} {[%emt 00:00:06]} Qd8 {[%clk 00:37:06]} {[%emt 00:00:46]} 19. Na4
{[%clk 00:40:09]} {[%emt 00:02:18]} Bc8 {[%clk 00:36:24]} {[%emt 00:01:12]} 20.
Rd1 {[%clk 00:39:50]} {[%emt 00:00:49]} Rf6 {[%clk 00:31:37]} {[%emt 00:05:18]}
21. Nb2 {[%clk 00:38:56]} {[%emt 00:01:23]} Rfe6 {[%clk 00:26:22]} {[%emt
00:05:45]} 22. Rf2 {[%clk 00:34:47]} {[%emt 00:04:39]} Qf6 {[%clk 00:22:45]}
{[%emt 00:04:07]} 23. Kg1 {[%clk 00:23:33]} {[%emt 00:11:44]} Nb5 {[%clk
00:14:11]} {[%emt 00:09:04]} 24. a4 {[%clk 00:22:14]} {[%emt 00:01:49]} Nxd4
{[%clk 00:13:52]} {[%emt 00:00:50]} 25. Qxd4 {[%clk 00:16:01]} {[%emt
00:06:43]} Re1+ {[%clk 00:14:15]} {[%emt 00:00:06]} 26. Rf1 {[%clk 00:16:25]}
{[%emt 00:00:06]} Rxd1 {[%clk 00:14:14]} {[%emt 00:00:31]} 27. Rxd1 {[%clk
00:16:35]} {[%emt 00:00:20]} Qxd4+ {[%clk 00:11:20]} {[%emt 00:03:25]} 28. Rxd4
{[%clk 00:17:03]} {[%emt 00:00:01]} Re1+ {[%clk 00:11:45]} {[%emt 00:00:04]} 29.
Kf2 {[%clk 00:17:25]} {[%emt 00:00:08]} Rxb1 {[%clk 00:12:12]} {[%emt
00:00:03]} 30. Rd2 {[%clk 00:17:52]} {[%emt 00:00:03]} b6 {[%clk 00:09:33]}
{[%emt 00:03:09]} 31. Ke3 {[%clk 00:17:18]} {[%emt 00:01:04]} Ba6 {[%clk
00:08:51]} {[%emt 00:01:12]} 32. Kd4 {[%clk 00:17:23]} {[%emt 00:00:25]} Kf7
{[%clk 00:08:28]} {[%emt 00:00:52]} 33. Ke5 {[%clk 00:16:26]} {[%emt 00:01:27]}
Ke7 {[%clk 00:06:25]} {[%emt 00:02:33]} 34. Kxf5 {[%clk 00:16:26]} {[%emt
00:00:30]} Kd6 {[%clk 00:05:06]} {[%emt 00:01:49]} 35. h4 {[%clk 00:15:52]}
{[%emt 00:01:04]} c5 {[%clk 00:02:50]} {[%emt 00:02:46]} 36. h5 {[%clk
00:16:11]} {[%emt 00:00:11]} Re1 {[%clk 00:02:21]} {[%emt 00:00:59]} 37. Nc4+
{[%clk 00:12:20]} {[%emt 00:04:22]} Bxc4 {[%clk 00:02:47]} {[%emt 00:00:04]} 38.
bxc4 {[%clk 00:12:46]} {[%emt 00:00:04]} d4 {[%clk 00:03:13]} {[%emt 00:00:03]}
39. h6 {[%clk 00:13:13]} {[%emt 00:00:03]} gxh6 {[%clk 00:01:38]} {[%emt
00:02:06]} 40. Kf6 {[%clk 00:28:42]} a6 {[%clk 00:16:35]} {[%emt 00:00:33]} 41.
Rb2 {[%clk 00:25:19]} {[%emt 00:03:52]} Rc1 {[%clk 00:06:41]} {[%emt 00:10:23]}
42. f5 {[%clk 00:21:56]} {[%emt 00:03:54]} Rxc4 {[%clk 00:07:02]} {[%emt
00:00:08]} 43. Kg7 {[%clk 00:22:17]} {[%emt 00:00:09]} d3 {[%clk 00:05:43]}
{[%emt 00:01:50]} 44. g3 {[%clk 00:18:47]} {[%emt 00:04:00]} Rc2 {[%clk
00:05:15]} {[%emt 00:00:57]} 45. f6 {[%clk 00:16:57]} {[%emt 00:02:20]} Rxb2
{[%clk 00:05:26]} {[%emt 00:00:19]} 46. f7 {[%clk 00:17:20]} {[%emt 00:00:06]}
d2 {[%clk 00:05:52]} {[%emt 00:00:04]} 47. f8=Q+ {[%clk 00:17:42]} {[%emt
00:00:09]} Kd5 {[%clk 00:05:12]} {[%emt 00:01:10]} 48. Qf7+ {[%clk 00:15:59]}
{[%emt 00:02:12]} Kd4 {[%clk 00:05:03]} {[%emt 00:00:39]} 49. Qf6+ {[%clk
00:16:13]} {[%emt 00:00:16]} Kd3 {[%clk 00:04:46]} {[%emt 00:00:47]} 50. Qxb2
{[%clk 00:16:31]} {[%emt 00:00:12]} d1=Q {[%clk 00:05:11]} {[%emt 00:00:05]} 51.
Qxb6 {[%clk 00:16:21]} {[%emt 00:00:41]} Qxf3 {[%clk 00:04:39]} {[%emt
00:01:01]} 52. Qxa6+ {[%clk 00:16:13]} {[%emt 00:00:37]} c4 {[%clk 00:04:24]}
{[%emt 00:00:46]} 53. a5 {[%clk 00:16:31]} {[%emt 00:00:13]} Qxg3+ {[%clk
00:03:47]} {[%emt 00:01:06]} 54. Kxh6 {[%clk 00:16:06]} {[%emt 00:00:55]} Qg6+
{[%clk 00:02:25]} {[%emt 00:01:51]} 1/2-1/2

[Event "IV Elllobregat Open Chess Tmnt"]
[Site "Sant Boi de Llobregat, Spain"]
[Date "2023.12.02"]
[Round "3.21"]
[White "Jacobson, Brandon"]
[Black "Valenzuela Gomez, Fernando"]
[Result "1-0"]
[TimeControl "90min/40moves + 15min/end + 30sec from move 1"]
[WhiteFideId "30901561"]
[BlackFideId "3409392"]
[WhiteElo "2538"]
[BlackElo "2383"]

1. d4 {[%clk 01:30:26]} {[%emt 00:00:32]} d5 {[%clk 01:27:40]} {[%emt
00:03:20]} 2. c4 {[%clk 01:30:28]} {[%emt 00:00:29]} e6 {[%clk 01:28:07]}
{[%emt 00:00:03]} 3. Nf3 {[%clk 01:29:25]} {[%emt 00:01:32]} Nf6 {[%clk
01:28:19]} {[%emt 00:00:17]} 4. g3 {[%clk 01:29:20]} {[%emt 00:00:35]} Be7
{[%clk 01:28:35]} {[%emt 00:00:14]} 5. Bg2 {[%clk 01:29:37]} {[%emt 00:00:13]}
O-O {[%clk 01:28:54]} {[%emt 00:00:11]} 6. Nc3 {[%clk 01:26:18]} {[%emt
00:03:49]} dxc4 {[%clk 01:25:06]} {[%emt 00:04:18]} 7. Ne5 {[%clk 01:26:20]}
{[%emt 00:00:28]} Nc6 {[%clk 01:24:38]} {[%emt 00:00:58]} 8. Bxc6 {[%clk
01:26:38]} {[%emt 00:00:13]} bxc6 {[%clk 01:24:59]} {[%emt 00:00:09]} 9. Nxc6
{[%clk 01:27:01]} {[%emt 00:00:07]} Qe8 {[%clk 01:25:19]} {[%emt 00:00:09]} 10.
Nxe7+ {[%clk 01:27:23]} {[%emt 00:00:08]} Qxe7 {[%clk 01:25:40]} {[%emt
00:00:08]} 11. Qa4 {[%clk 01:27:47]} {[%emt 00:00:07]} Nd5 {[%clk 01:23:42]}
{[%emt 00:02:27]} 12. O-O {[%clk 01:20:36]} {[%emt 00:07:42]} a5 {[%clk
01:21:16]} {[%emt 00:02:55]} 13. Re1 {[%clk 01:12:47]} {[%emt 00:08:20]} Nb4
{[%clk 01:21:02]} {[%emt 00:00:43]} 14. Bf4 {[%clk 01:03:18]} {[%emt 00:09:59]}
Bd7 {[%clk 01:12:29]} {[%emt 00:09:02]} 15. Qd1 {[%clk 00:58:45]} {[%emt
00:05:03]} Bc6 {[%clk 01:12:39]} {[%emt 00:00:19]} 16. b3 {[%clk 00:48:11]}
{[%emt 00:11:06]} cxb3 {[%clk 01:04:33]} {[%emt 00:08:36]} 17. Qxb3 {[%clk
00:48:36]} {[%emt 00:00:06]} Rfb8 {[%clk 00:35:20]} {[%emt 00:29:43]} 18. Qc4
{[%clk 00:46:31]} {[%emt 00:02:35]} Qd7 {[%clk 00:30:27]} {[%emt 00:05:23]} 19.
Rec1 {[%clk 00:33:21]} {[%emt 00:13:40]} Nd5 {[%clk 00:25:07]} {[%emt
00:05:49]} 20. Nxd5 {[%clk 00:31:28]} {[%emt 00:02:23]} Bxd5 {[%clk 00:25:30]}
{[%emt 00:00:06]} 21. Qd3 {[%clk 00:29:44]} {[%emt 00:02:15]} Ra7 {[%clk
00:22:07]} {[%emt 00:03:53]} 22. Rc5 {[%clk 00:24:52]} {[%emt 00:05:22]} h6
{[%clk 00:17:35]} {[%emt 00:05:02]} 23. e4 {[%clk 00:17:03]} {[%emt 00:08:19]}
Ba8 {[%clk 00:17:54]} {[%emt 00:00:10]} 24. Rac1 {[%clk 00:17:28]} {[%emt
00:00:05]} Rd8 {[%clk 00:15:28]} {[%emt 00:02:55]} 25. Bxc7 {[%clk 00:17:20]}
{[%emt 00:00:39]} Rc8 {[%clk 00:08:23]} {[%emt 00:07:35]} 26. Bb6 {[%clk
00:11:55]} {[%emt 00:05:55]} Rxc5 {[%clk 00:08:42]} {[%emt 00:00:11]} 27. Rxc5
{[%clk 00:12:21]} {[%emt 00:00:04]} Rb7 {[%clk 00:08:38]} {[%emt 00:00:34]} 28.
Bxa5 {[%clk 00:12:37]} {[%emt 00:00:14]} Rb8 {[%clk 00:08:20]} {[%emt
00:00:48]} 29. Bc3 {[%clk 00:09:58]} {[%emt 00:03:09]} Rc8 {[%clk 00:07:17]}
{[%emt 00:01:33]} 30. Ra5 {[%clk 00:03:21]} {[%emt 00:07:07]} Bb7 {[%clk
00:03:03]} {[%emt 00:04:43]} 31. f3 {[%clk 00:03:50]} {[%emt 00:00:01]} Ra8
{[%clk 00:02:50]} {[%emt 00:00:43]} 32. Qb5 {[%clk 00:01:53]} {[%emt 00:02:27]}
Qc8 {[%clk 00:02:21]} {[%emt 00:00:58]} 33. Qc5 {[%clk 00:01:30]} {[%emt
00:00:54]} Qd7 {[%clk 00:02:28]} {[%emt 00:00:23]} 34. Qb5 {[%clk 00:01:45]}
{[%emt 00:00:15]} Qc8 {[%clk 00:02:50]} {[%emt 00:00:08]} 35. Qc5 {[%clk
00:01:50]} {[%emt 00:00:26]} Qd7 {[%clk 00:03:12]} {[%emt 00:00:08]} 36. Rxa8+
{[%clk 00:01:21]} {[%emt 00:00:59]} Bxa8 {[%clk 00:03:33]} {[%emt 00:00:08]} 37.
Qe5 {[%clk 00:01:41]} {[%emt 00:00:12]} Qa7 {[%clk 00:03:16]} {[%emt 00:00:47]}
38. a4 {[%clk 00:01:18]} {[%emt 00:00:54]} Kh7 {[%clk 00:02:03]} {[%emt
00:01:42]} 39. a5 {[%clk 00:01:17]} {[%emt 00:00:31]} Qb7 {[%clk 00:01:23]}
{[%emt 00:01:09]} 40. Qf4 {[%clk 00:15:44]} {[%emt 00:01:03]} Qb1+ {[%clk
00:16:10]} {[%emt 00:00:42]} 41. Kf2 {[%clk 00:13:48]} {[%emt 00:02:26]} Qb3
{[%clk 00:13:08]} {[%emt 00:03:32]} 42. Qd2 {[%clk 00:11:23]} {[%emt 00:02:55]}
Qc4 {[%clk 00:06:49]} {[%emt 00:06:49]} 43. g4 {[%clk 00:05:01]} {[%emt
00:06:53]} Bb7 {[%clk 00:06:47]} {[%emt 00:00:32]} 44. h4 {[%clk 00:04:52]}
{[%emt 00:00:39]} f6 {[%clk 00:05:18]} {[%emt 00:01:59]} 45. Qe3 {[%clk
00:04:37]} {[%emt 00:00:45]} Bc6 {[%clk 00:04:01]} {[%emt 00:01:48]} 46. Kg2
{[%clk 00:03:01]} {[%emt 00:02:05]} Bb7 {[%clk 00:04:03]} {[%emt 00:00:28]} 47.
Kf2 {[%clk 00:02:13]} {[%emt 00:01:17]} Bc6 {[%clk 00:04:20]} {[%emt 00:00:13]}
48. d5 {[%clk 00:01:31]} {[%emt 00:01:13]} exd5 {[%clk 00:04:20]} {[%emt
00:00:30]} 49. e5 {[%clk 00:01:59]} {[%emt 00:00:02]} d4 {[%clk 00:01:29]}
{[%emt 00:03:20]} 50. Bxd4 {[%clk 00:01:48]} {[%emt 00:00:42]} fxe5 {[%clk
00:00:52]} {[%emt 00:01:07]} 51. Qxe5 {[%clk 00:02:11]} {[%emt 00:00:06]} Qf7
{[%clk 00:00:32]} {[%emt 00:00:49]} 52. f4 {[%clk 00:00:47]} {[%emt 00:01:56]}
Bd7 {[%clk 00:00:33]} {[%emt 00:00:30]} 53. Kg3 {[%clk 00:00:49]} {[%emt
00:00:27]} Bc8 {[%clk 00:01:00]} {[%emt 00:00:03]} 54. h5 {[%clk 00:00:40]}
{[%emt 00:00:39]} Qb7 {[%clk 00:01:20]} {[%emt 00:00:11]} 55. a6 {[%clk
00:00:52]} {[%emt 00:00:19]} Qd7 {[%clk 00:01:27]} {[%emt 00:00:22]} 56. f5
{[%clk 00:00:33]} {[%emt 00:00:50]} Bxa6 {[%clk 00:01:44]} {[%emt 00:00:13]} 57.
f6 {[%clk 00:01:00]} {[%emt 00:00:03]} Bc8 {[%clk 00:00:59]} {[%emt 00:01:14]}
58. Qe4+ {[%clk 00:01:18]} {[%emt 00:00:12]} Kg8 {[%clk 00:01:20]} {[%emt
00:00:08]} 59. fxg7 {[%clk 00:01:41]} {[%emt 00:00:08]} Qe6 {[%clk 00:01:03]}
{[%emt 00:00:47]} 60. Qf4 {[%clk 00:01:39]} {[%emt 00:00:32]} Kh7 {[%clk
00:01:13]} {[%emt 00:00:19]} 61. Be5 {[%clk 00:00:53]} {[%emt 00:01:17]} Qd5
{[%clk 00:01:10]} {[%emt 00:00:33]} 62. Qf6 {[%clk 00:01:02]} {[%emt 00:00:21]}
Qd7 {[%clk 00:00:38]} {[%emt 00:01:02]} 63. g8=Q+ {[%clk 00:01:24]} {[%emt
00:00:08]} Kxg8 {[%clk 00:01:01]} {[%emt 00:00:07]} 64. Qg6+ {[%clk 00:01:51]}
{[%emt 00:00:02]} 1-0